fUST/lending_fUST_20240919
["ID","MTS","AMOUNT","RATE_DAILY","PERIOD"]
[338579310,1726745444385,-500.0,0.00016438,2]
[338579311,1726745444395,-353.85,0.00016438,2]
[338579312,1726745444405,-779.56,0.00016438,2]
[338579313,1726745444415,-500.0,0.00016438,2]
[338579314,1726745444424,-1832.39,0.00016438,2]
[338579315,1726745444434,-1110.08,0.00016438,2]
[338579316,1726745444444,-500.0,0.00016438,2]
[338579317,1726745444453,-500.0,0.00016438,2]
[338579318,1726745444465,-852.45,0.00016438,2]
[338579319,1726745444475,-500.0,0.00016438,2]
[338579320,1726745444485,-500.0,0.00016438,2]
[338579321,1726745444495,-500.0,0.00016438,2]
[338579322,1726745444504,-500.0,0.00016438,2]
[338579323,1726745444514,-500.0,0.00016438,2]
[338579324,1726745444524,-500.0,0.00016438,2]
[338579325,1726745444534,-500.0,0.00016438,2]
[338579326,1726745444547,-500.0,0.00016438,2]
[338579327,1726745444557,-500.0,0.00016438,2]
[338579328,1726745444567,-500.0,0.00016438,2]
[338579329,1726745444576,-500.0,0.00016438,2]
[338579330,1726745444586,-500.0,0.00016438,2]
[338579331,1726745444596,-500.0,0.00016438,2]
[338579332,1726745444605,-500.0,0.00016438,2]
[338579333,1726745444614,-500.0,0.00016438,2]
[338579334,1726745444624,-500.0,0.00016438,2]
[338579335,1726745444635,-500.0,0.00016438,2]
[338579336,1726745444644,-500.0,0.00016438,2]
[338579337,1726745444653,-500.0,0.00016438,2]
[338579338,1726745444663,-500.0,0.00016438,2]
[338579339,1726745444673,-1334.66,0.00016438,2]
[338579340,1726745444683,-925.92,0.00016438,2]
[338579341,1726745444693,-546.41,0.00016438,2]
[338579342,1726745444703,-1089.03,0.00016438,2]
[338579343,1726745444713,-500.0,0.00016438,2]
[338579344,1726745444723,-500.0,0.00016438,2]
[338579345,1726745444732,-500.0,0.00016438,2]
[338579346,1726745444743,-500.0,0.00016438,2]
[338579347,1726745444753,-503.96153996,0.00016438,2]
[338579348,1726745444763,-500.0,0.00016438,2]
[338579349,1726745444773,-500.0,0.00016438,2]
[338579350,1726745444782,-500.0,0.00016438,2]
[338579351,1726745444792,-500.0,0.00016438,2]
[338579352,1726745444801,-500.0,0.00016438,2]
[338579353,1726745444811,-500.0,0.00016438,2]
[338579354,1726745444821,-500.0,0.00016438,2]
[338579355,1726745444830,-500.0,0.00016438,2]
[338579356,1726745444840,-500.0,0.00016438,2]
[338579357,1726745444849,-500.0,0.00016438,2]
[338579358,1726745444859,-500.0,0.00016438,2]
[338579359,1726745444868,-1783.2,0.00016438,2]
[338579360,1726745444878,-500.0,0.00016438,2]
[338579361,1726745444889,-500.0,0.00016438,2]
[338579362,1726745444899,-500.0,0.00016438,2]
[338579363,1726745444908,-500.0,0.00016438,2]
[338579364,1726745444917,-500.0,0.00016438,2]
[338579365,1726745444927,-500.0,0.00016438,2]
[338579366,1726745444939,-500.0,0.00016438,2]
[338579367,1726745444949,-402.78,0.00016438,2]
[338579368,1726745444959,-427.88488568,0.00016438,2]
[338579369,1726745444968,-500.0,0.00016438,2]
[338579370,1726745444978,-500.0,0.00016438,2]
[338579371,1726745444988,-500.0,0.00016438,2]
[338579372,1726745444997,-509.5149322,0.00016438,2]
[338579373,1726745445007,-500.0,0.00016438,2]
[338579374,1726745445017,-500.0,0.00016438,2]
[338579375,1726745445026,-500.0,0.00016438,2]
[338579376,1726745445036,-500.0,0.00016438,2]
[338579377,1726745445045,-500.0,0.00016438,2]
[338579378,1726745445055,-606.66,0.00016438,2]
[338579379,1726745445064,-500.0,0.00016438,2]
[338579380,1726745445074,-500.0,0.00016438,2]
[338579381,1726745445084,-965.09,0.00016438,2]
[338579382,1726745445093,-500.0,0.00016438,2]
[338579383,1726745445103,-500.0,0.00016438,2]
[338579384,1726745445113,-500.0,0.00016438,2]
[338579385,1726745445123,-500.0,0.00016438,2]
[338579386,1726745445132,-500.0,0.00016438,2]
[338579387,1726745445143,-500.0,0.00016438,2]
[338579388,1726745445153,-511.19,0.00016438,2]
[338579389,1726745445162,-500.0,0.00016438,2]
[338579390,1726745445173,-543.49,0.00016438,2]
[338579391,1726745445182,-3975.93,0.00016438,2]
[338579392,1726745445191,-500.0,0.00016438,2]
[338579393,1726745445201,-508.75,0.00016438,2]
[338579394,1726745445211,-500.0,0.00016438,2]
[338579395,1726745445220,-500.0,0.00016438,2]
[338579396,1726745445229,-500.0,0.00016438,2]
[338579397,1726745445239,-500.0,0.00016438,2]
[338579398,1726745445248,-500.0,0.00016438,2]
[338579399,1726745445258,-961.19,0.00016438,2]
[338579400,1726745445267,-500.0,0.00016438,2]
[338579401,1726745445277,-686.28,0.00016438,2]
[338579402,1726745445287,-670.64,0.00016438,2]
[338579403,1726745445297,-503.6,0.00016438,2]
[338579404,1726745445306,-500.0,0.00016438,2]
[338579405,1726745445315,-847.91,0.00016438,2]
[338579406,1726745445325,-1204.43,0.00016438,2]
[338579407,1726745445335,-500.0,0.00016438,2]
[338579408,1726745445345,-602.3,0.00016438,2]
[338579409,1726745445403,-570.62,0.00016438,2]
[338579410,1726745445413,-362.13980169,0.00016438,2]
[338579411,1726745445423,-902.69,0.00016438,2]
[338579412,1726745445433,-500.0,0.00016438,2]
[338579413,1726745445443,-500.0,0.00016438,2]
[338579414,1726745445453,-500.0,0.00016438,2]
[338579415,1726745445466,-500.0,0.00016438,2]
[338579416,1726745445475,-500.0,0.00016438,2]
[338579417,1726745445485,-500.0,0.00016438,2]
[338579418,1726745445495,-500.0,0.00016438,2]
[338579419,1726745445505,-500.0,0.00016438,2]
[338579420,1726745445514,-500.0,0.00016438,2]
[338579421,1726745445523,-500.0,0.00016438,2]
[338579422,1726745445533,-500.0,0.00016438,2]
[338579423,1726745445544,-500.0,0.00016438,2]
[338579424,1726745445554,-500.0,0.00016438,2]
[338579425,1726745445564,-564.57,0.00016438,2]
[338579426,1726745445574,-523.54,0.00016438,2]
[338579427,1726745445584,-500.0,0.00016438,2]
[338579428,1726745445593,-536.2,0.00016438,2]
[338579429,1726745445603,-500.0,0.00016438,2]
[338579430,1726745445613,-1023.18,0.00016438,2]
[338579431,1726745445623,-512.62,0.00016438,2]
[338579432,1726745445633,-500.0,0.00016438,2]
[338579433,1726745445649,-500.0,0.00016438,2]
[338579434,1726745445659,-3488.81,0.00016438,2]
[338579435,1726745445669,-500.0,0.00016438,2]
[338579436,1726745445678,-500.0,0.00016438,2]
[338579437,1726745445688,-500.0,0.00016438,2]
[338579438,1726745445698,-500.0,0.00016438,2]
[338579439,1726745445707,-1006.39,0.00016438,2]
[338579440,1726745445718,-500.0,0.00016438,2]
[338579441,1726745445729,-500.0,0.00016438,2]
[338579442,1726745445738,-500.0,0.00016438,2]
[338579443,1726745445749,-499.07152592,0.00016438,2]
[338579444,1726745445758,-553.21,0.00016438,2]
[338579445,1726745445770,-500.0,0.00016438,2]
[338579446,1726745445779,-500.0,0.00016438,2]
[338579447,1726745445789,-898.1,0.00016438,2]
[338579448,1726745445799,-573.52,0.00016438,2]
[338579449,1726745445808,-500.0,0.00016438,2]
[338579450,1726745445817,-500.0,0.00016438,2]
[338579451,1726745445828,-500.0,0.00016438,2]
[338579452,1726745445838,-500.0,0.00016438,2]
[338579453,1726745445848,-500.0,0.00016438,2]
[338579454,1726745445857,-500.0,0.00016438,2]
[338579455,1726745445867,-500.0,0.00016438,2]
[338579456,1726745445877,-500.0,0.00016438,2]
[338579457,1726745445888,-500.0,0.00016438,2]
[338579458,1726745445898,-1394.15,0.00016438,2]
[338579459,1726745445908,-500.0,0.00016438,2]
[338579460,1726745445917,-1509.27,0.00016438,2]
[338579461,1726745445927,-529.72,0.00016438,2]
[338579462,1726745445937,-500.0,0.00016438,2]
[338579463,1726745445947,-500.0,0.00016438,2]
[338579464,1726745445957,-500.0,0.00016438,2]
[338579465,1726745445966,-500.0,0.00016438,2]
[338579466,1726745445975,-380.84,0.00016438,2]
[338579467,1726745445985,-1057.47,0.00016438,2]
[338579468,1726745445994,-500.0,0.00016438,2]
[338579469,1726745446004,-500.0,0.00016438,2]
[338579470,1726745446014,-232.55147581,0.00016438,2]
[338579471,1726745446024,-500.0,0.00016438,2]
[338579473,1726745446034,-842.56,0.00016438,2]
[338579474,1726745446043,-500.0,0.00016438,2]
[338579476,1726745446053,-500.0,0.00016438,2]
[338579477,1726745446062,-500.0,0.00016438,2]
[338579478,1726745446073,-500.0,0.00016438,2]
[338579480,1726745446082,-951.2,0.00016438,2]
[338579481,1726745446092,-500.0,0.00016438,2]
[338579482,1726745446101,-500.0,0.00016438,2]
[338579483,1726745446111,-683.25,0.00016438,2]
[338579485,1726745446119,-500.71773299,0.00016438,2]
[338579486,1726745446129,-6240.44668428,0.00016452,2]
[338579487,1726745446138,-500.0,0.00016473,2]
[338579488,1726745446147,-500.0,0.00016473,2]
[338579489,1726745446157,-501.50815981,0.00016473,2]
[338579490,1726745446168,-500.0,0.00016473,2]
[338579491,1726745446178,-500.0,0.00016473,2]
[338579492,1726745446187,-200.13184498,0.00016473,2]
[338579493,1726745446197,-500.0,0.00016473,2]
[338579494,1726745446206,-500.20872257,0.00016473,2]
[338579495,1726745446216,-204.68820788,0.00016473,2]
[338579496,1726745446226,-261.15767013,0.00016473,2]
[338579497,1726745446235,-500.0,0.00016473,2]
[338579498,1726745446245,-500.0,0.00016473,2]
[338579500,1726745446255,-500.0,0.00016473,2]
[338579501,1726745446264,-500.0,0.00016473,2]
[338579502,1726745446274,-500.0,0.00016473,2]
[338579503,1726745446283,-160.90163875,0.00016473,2]
[338579504,1726745446292,-500.0,0.00016473,2]
[338579506,1726745446302,-500.0,0.00016473,2]
[338579507,1726745446311,-298.91044868,0.00016473,2]
[338579508,1726745446320,-500.0,0.00016473,2]
[338579509,1726745446331,-500.0,0.00016473,2]
[338579510,1726745446341,-500.0,0.00016473,2]
[338579511,1726745446353,-199.67272366,0.00016473,2]
[338579512,1726745446364,-500.0,0.00016473,2]
[338579513,1726745446373,-500.0,0.00016473,2]
[338579514,1726745446383,-500.0,0.00016473,2]
[338579515,1726745446394,-500.0,0.00016473,2]
[338579516,1726745446403,-500.0,0.00016473,2]
[338579517,1726745446413,-500.0,0.00016473,2]
[338579518,1726745446422,-150.0,0.00016595,2]
[338579519,1726745446431,-150.112233,0.000166,2]
[338579520,1726745446441,-150.112233,0.000166,2]
[338579521,1726745446451,-150.112233,0.000166,2]
[338579522,1726745446463,-2148.81871059,0.000167,2]
[338579523,1726745446474,-150.112233,0.000167,2]
[338579524,1726745446484,-150.112233,0.000167,2]
[338579525,1726745446493,-500.0,0.00016701,2]
[338579526,1726745446503,-500.0,0.00016701,2]
[338579527,1726745446513,-500.0,0.00016701,2]
[338579528,1726745446523,-500.0,0.00016701,2]
[338579529,1726745446534,-500.0,0.00016701,2]
[338579530,1726745446546,-500.0,0.00016701,2]
[338579531,1726745446556,-500.0,0.00016701,2]
[338579532,1726745446566,-500.0,0.00016701,2]
[338579533,1726745446575,-235.52800243,0.00016701,2]
[338579534,1726745446584,-8801.81576445,0.00016712,5]
[338579535,1726745446593,-265.837548,0.00016712,2]
[338579536,1726745446602,-265.837548,0.00016712,2]
[338579537,1726745446611,-265.837548,0.00016712,2]
[338579538,1726745446620,-265.837548,0.00016712,2]
[338579539,1726745446630,-298.62128832,0.00016712,2]
[338579540,1726745446640,-151.0,0.00016712,2]
[338579541,1726745446649,-153.710964,0.00016712,2]
[338579542,1726745446658,-153.710964,0.00016712,2]
[338579543,1726745446668,-319.64203003,0.00016712,2]
[338579544,1726745446678,-358.4850641,0.00016712,2]
[338579545,1726745446688,-151.0,0.00016712,2]
[338579546,1726745446698,-500.0,0.00016712,2]
[338579547,1726745446708,-151.0,0.00016712,2]
[338579548,1726745446718,-500.0,0.00016712,2]
[338579549,1726745446729,-151.0,0.00016712,2]
[338579550,1726745446740,-500.0,0.00016712,2]
[338579551,1726745446751,-500.0,0.00016712,2]
[338579552,1726745446761,-500.0,0.00016712,2]
[338579553,1726745446770,-500.0,0.00016712,2]
[338579554,1726745446779,-500.0,0.00016712,2]
[338579555,1726745446788,-500.0,0.00016712,2]
[338579556,1726745446797,-500.0,0.00016712,2]
[338579557,1726745446807,-500.0,0.00016712,2]
[338579558,1726745446818,-500.0,0.00016712,2]
[338579559,1726745446830,-500.0,0.00016712,2]
[338579560,1726745446841,-500.0,0.00016712,2]
[338579561,1726745446851,-1088.79,0.00016712,2]
[338579562,1726745446861,-500.0,0.00016712,2]
[338579563,1726745446870,-725.67,0.00016712,2]
[338579564,1726745446879,-1073.51,0.00016712,2]
[338579565,1726745446888,-1314.26,0.00016712,2]
[338579566,1726745446898,-528.91,0.00016712,2]
[338579567,1726745446908,-151.0,0.00016712,2]
[338579568,1726745446918,-1199.71,0.00016712,2]
[338579569,1726745446927,-562.94,0.00016712,2]
[338579570,1726745446937,-500.0,0.00016712,2]
[338579571,1726745446946,-582.72700366,0.00016712,2]
[338579572,1726745446955,-500.0,0.00016712,2]
[338579573,1726745446965,-587.69,0.00016712,2]
[338579574,1726745446974,-1245.92,0.00016712,2]
[338579575,1726745446983,-500.0,0.00016712,2]
[338579576,1726745446992,-789.2,0.00016712,2]
[338579577,1726745447002,-500.0,0.00016712,2]
[338579578,1726745447011,-207.09781665,0.00016712,2]
[338579579,1726745447020,-500.0,0.00016712,2]
[338579580,1726745447030,-791.12,0.00016712,2]
[338579581,1726745447040,-500.0,0.00016712,2]
[338579582,1726745447049,-500.0,0.00016712,2]
[338579583,1726745447058,-500.0,0.00016712,2]
[338579584,1726745447068,-500.0,0.00016712,2]
[338579585,1726745447077,-500.0,0.00016712,2]
[338579586,1726745447087,-200.0,0.00016712,2]
[338579587,1726745447096,-500.0,0.00016712,2]
[338579588,1726745447105,-500.0,0.00016712,2]
[338579589,1726745447115,-1203.54,0.00016712,2]
[338579590,1726745447124,-500.0,0.00016712,2]
[338579591,1726745447133,-152.20976,0.00016712,2]
[338579592,1726745447144,-500.0,0.00016712,2]
[338579593,1726745447153,-152.20976,0.00016712,2]
[338579594,1726745447163,-655.43,0.00016712,2]
[338579595,1726745447172,-500.0,0.00016712,2]
[338579596,1726745447182,-500.0,0.00016712,2]
[338579597,1726745447192,-500.0,0.00016712,2]
[338579598,1726745447203,-537.5,0.00016712,2]
[338579599,1726745447213,-759.2,0.00016712,2]
[338579600,1726745447225,-593.71,0.00016712,2]
[338579601,1726745447236,-307.94990193,0.00016712,2]
[338579602,1726745447246,-500.0,0.00016712,2]
[338579603,1726745447257,-500.0,0.00016712,2]
[338579604,1726745447266,-500.0,0.00016712,2]
[338579605,1726745447275,-804.91,0.00016712,2]
[338579606,1726745447285,-528.0,0.00016712,2]
[338579607,1726745447294,-500.0,0.00016712,2]
[338579608,1726745447303,-445.67462593,0.00016712,2]
[338579609,1726745447313,-196.44512324,0.00016712,2]
[338579610,1726745447322,-500.0,0.00016712,2]
[338579611,1726745447331,-618.91,0.00016712,2]
[338579612,1726745447341,-859.5,0.00016712,2]
[338579613,1726745447351,-500.0,0.00016712,2]
[338579614,1726745447360,-500.0,0.00016712,2]
[338579615,1726745447371,-500.0,0.00016712,2]
[338579616,1726745447382,-500.0,0.00016712,2]
[338579617,1726745447394,-1034.49,0.00016712,2]
[338579618,1726745447403,-500.0,0.00016712,2]
[338579619,1726745447414,-500.0,0.00016712,2]
[338579620,1726745447425,-151.0,0.00016712,2]
[338579621,1726745447434,-500.0,0.00016712,2]
[338579622,1726745447444,-500.0,0.00016712,2]
[338579623,1726745447453,-500.0,0.00016712,2]
[338579624,1726745447466,-500.0,0.00016712,2]
[338579625,1726745447475,-500.0,0.00016712,2]
[338579626,1726745447485,-458.61467291,0.00016712,2]
[338579627,1726745447495,-500.0,0.00016712,2]
[338579628,1726745447508,-500.0,0.00016712,2]
[338579629,1726745447519,-151.0,0.00016712,2]
[338579630,1726745447529,-500.0,0.00016712,2]
[338579631,1726745447541,-500.0,0.00016712,2]
[338579632,1726745447552,-500.12663284,0.00016712,2]
[338579633,1726745447563,-151.0,0.00016712,2]
[338579634,1726745447573,-500.0,0.00016712,2]
[338579635,1726745447582,-650.08,0.00016712,2]
[338579636,1726745447592,-500.0,0.00016712,2]
[338579637,1726745447601,-500.0,0.00016712,2]
[338579638,1726745447610,-229.82508824,0.00016712,2]
[338579639,1726745447620,-500.0,0.00016712,2]
[338579640,1726745447629,-1305.79,0.00016712,2]
[338579641,1726745447639,-500.0,0.00016712,2]
[338579642,1726745447648,-664.99,0.00016712,2]
[338579643,1726745447657,-500.0,0.00016712,2]
[338579644,1726745447668,-500.0,0.00016712,2]
[338579645,1726745447677,-682.03,0.00016712,2]
[338579646,1726745447686,-500.0,0.00016712,2]
[338579647,1726745447695,-617.83,0.00016712,2]
[338579648,1726745447705,-500.0,0.00016712,2]
[338579649,1726745447714,-500.0,0.00016712,2]
[338579650,1726745447723,-500.0,0.00016712,2]
[338579651,1726745447733,-500.0,0.00016712,2]
[338579652,1726745447744,-500.0,0.00016712,2]
[338579653,1726745447753,-1454.38,0.00016712,2]
[338579654,1726745447762,-1996.198314,0.00016712,2]
[338579655,1726745447772,-500.0,0.00016712,2]
[338579656,1726745447781,-1996.198314,0.00016712,2]
[338579657,1726745447791,-740.58,0.00016712,2]
[338579658,1726745447801,-500.0,0.00016712,2]
[338579659,1726745447810,-151.0,0.00016712,2]
[338579660,1726745447819,-601.62,0.00016712,2]
[338579661,1726745447828,-500.0,0.00016712,2]
[338579662,1726745447838,-500.0,0.00016712,2]
[338579663,1726745447847,-500.0,0.00016712,2]
[338579664,1726745447857,-307.16368999,0.00016712,2]
[338579665,1726745447866,-500.0,0.00016712,2]
[338579666,1726745447875,-500.0,0.00016712,2]
[338579667,1726745447885,-500.0,0.00016712,2]
[338579668,1726745447895,-1615.86,0.00016712,2]
[338579669,1726745447905,-624.29,0.00016712,2]
[338579670,1726745447915,-500.0,0.00016712,2]
[338579671,1726745447926,-599.07,0.00016712,2]
[338579672,1726745447938,-500.0,0.00016712,2]
[338579673,1726745447948,-500.0,0.00016712,2]
[338579674,1726745447959,-500.0,0.00016712,2]
[338579675,1726745447968,-500.0,0.00016712,2]
[338579676,1726745447977,-500.0,0.00016712,2]
[338579677,1726745447987,-1017.87,0.00016712,2]
[338579678,1726745447996,-500.0,0.00016712,2]
[338579679,1726745448006,-500.0,0.00016712,2]
[338579680,1726745448016,-417.42827949,0.00016712,2]
[338579681,1726745448025,-500.0,0.00016712,2]
[338579682,1726745448035,-500.0,0.00016712,2]
[338579683,1726745448045,-706.51,0.00016712,2]
[338579684,1726745448055,-500.0,0.00016712,2]
[338579685,1726745448064,-500.0,0.00016712,2]
[338579686,1726745448075,-500.0,0.00016712,2]
[338579687,1726745448084,-500.0,0.00016712,2]
[338579688,1726745448093,-580.67,0.00016712,2]
[338579689,1726745448102,-500.0,0.00016712,2]
[338579690,1726745448112,-500.0,0.00016712,2]
[338579691,1726745448123,-500.0,0.00016712,2]
[338579692,1726745448132,-500.0,0.00016712,2]
[338579693,1726745448142,-500.0,0.00016712,2]
[338579694,1726745448153,-500.0,0.00016712,2]
[338579695,1726745448162,-500.0,0.00016712,2]
[338579696,1726745448173,-847.55,0.00016712,2]
[338579697,1726745448183,-500.0,0.00016712,2]
[338579698,1726745448193,-755.15,0.00016712,2]
[338579699,1726745448203,-689.91,0.00016712,2]
[338579700,1726745448212,-559.66,0.00016712,2]
[338579701,1726745448222,-500.0,0.00016712,2]
[338579702,1726745448232,-500.0,0.00016712,2]
[338579703,1726745448241,-500.0,0.00016712,2]
[338579704,1726745448251,-500.0,0.00016712,2]
[338579705,1726745448261,-500.0,0.00016712,2]
[338579706,1726745448270,-378.31421143,0.00016712,2]
[338579707,1726745448279,-500.0,0.00016712,2]
[338579708,1726745448289,-500.0,0.00016712,2]
[338579709,1726745448299,-500.0,0.00016712,2]
[338579710,1726745448309,-500.0,0.00016712,2]
[338579711,1726745448319,-923.86,0.00016712,2]
[338579712,1726745448328,-500.0,0.00016712,2]
[338579713,1726745448338,-2410.95,0.00016712,2]
[338579714,1726745448347,-714.13,0.00016712,2]
[338579715,1726745448357,-814.61,0.00016712,2]
[338579716,1726745448366,-500.0,0.00016712,2]
[338579717,1726745448376,-500.0,0.00016712,2]
[338579718,1726745448385,-500.0,0.00016712,2]
[338579719,1726745448395,-514.78046155,0.00016712,2]
[338579720,1726745448404,-1189.77,0.00016712,2]
[338579721,1726745448414,-500.0,0.00016712,2]
[338579722,1726745448424,-596.19,0.00016712,2]
[338579723,1726745448433,-500.0,0.00016712,2]
[338579724,1726745448443,-1011.64,0.00016712,2]
[338579725,1726745448453,-500.0,0.00016712,2]
[338579726,1726745448465,-601.85,0.00016712,2]
[338579727,1726745448477,-500.0,0.00016712,2]
[338579728,1726745448486,-500.0,0.00016712,2]
[338579729,1726745448496,-500.0,0.00016712,2]
[338579730,1726745448506,-500.0,0.00016712,2]
[338579731,1726745448518,-1816.62,0.00016712,2]
[338579732,1726745448527,-1823.38,0.00016712,2]
[338579733,1726745448539,-500.0,0.00016712,2]
[338579734,1726745448548,-911.58,0.00016712,2]
[338579735,1726745448558,-500.0,0.00016712,2]
[338579736,1726745448569,-1181.93,0.00016712,2]
[338579737,1726745448578,-1269.83,0.00016712,2]
[338579738,1726745448588,-1033.25,0.00016712,2]
[338579739,1726745448597,-500.0,0.00016712,2]
[338579740,1726745448607,-535.56,0.00016712,2]
[338579741,1726745448616,-500.0,0.00016712,2]
[338579742,1726745448625,-596.71466559,0.00016712,2]
[338579743,1726745448635,-500.0,0.00016712,2]
[338579744,1726745448645,-500.0,0.00016712,2]
[338579745,1726745448655,-798.79,0.00016712,2]
[338579746,1726745448665,-773.96,0.00016712,2]
[338579747,1726745448675,-1537.52,0.00016712,2]
[338579748,1726745448684,-500.0,0.00016712,2]
[338579749,1726745448693,-533.0,0.00016712,2]
[338579750,1726745448703,-500.0,0.00016712,2]
[338579751,1726745448714,-965.79,0.00016712,2]
[338579752,1726745448724,-500.0,0.00016712,2]
[338579753,1726745448734,-925.93,0.00016712,2]
[338579754,1726745448745,-510.52,0.00016712,2]
[338579755,1726745448757,-500.0,0.00016712,2]
[338579756,1726745448767,-500.0,0.00016712,2]
[338579757,1726745448777,-511.06,0.00016712,2]
[338579758,1726745448788,-717.35,0.00016712,2]
[338579759,1726745448798,-500.0,0.00016712,2]
[338579760,1726745448808,-982.08,0.00016712,2]
[338579761,1726745448818,-561.95637592,0.00016712,2]
[338579762,1726745448828,-151.0,0.00016712,2]
[338579763,1726745448838,-500.0,0.00016712,2]
[338579764,1726745448848,-492.76905113,0.00016712,2]
[338579765,1726745448857,-500.0,0.00016712,2]
[338579766,1726745448866,-500.0,0.00016712,2]
[338579767,1726745448875,-151.0,0.00016712,2]
[338579768,1726745448884,-151.0,0.00016712,2]
[338579769,1726745448894,-892.49,0.00016712,2]
[338579770,1726745448904,-1305.64,0.00016712,2]
[338579771,1726745448914,-500.0,0.00016712,2]
[338579772,1726745448923,-500.0,0.00016712,2]
[338579773,1726745448932,-151.0,0.00016712,2]
[338579774,1726745448941,-500.0,0.00016712,2]
[338579775,1726745448950,-151.0,0.00016712,2]
[338579776,1726745448960,-821.31,0.00016712,2]
[338579777,1726745448969,-500.0,0.00016712,2]
[338579778,1726745448978,-500.0,0.00016712,2]
[338579779,1726745448988,-500.0,0.00016712,2]
[338579780,1726745448997,-500.0,0.00016712,2]
[338579781,1726745449007,-500.0,0.00016712,2]
[338579782,1726745449016,-500.0,0.00016712,2]
[338579783,1726745449025,-500.0,0.00016712,2]
[338579784,1726745449034,-500.0,0.00016712,2]
[338579785,1726745449044,-500.0,0.00016712,2]
[338579786,1726745449054,-1443.16,0.00016712,2]
[338579787,1726745449063,-979.85,0.00016712,2]
[338579788,1726745449072,-500.0,0.00016712,2]
[338579789,1726745449082,-1427.25,0.00016712,2]
[338579790,1726745449092,-151.0,0.00016712,2]
[338579791,1726745449101,-497.00598802,0.00016712,2]
[338579792,1726745449110,-538.45,0.00016712,2]
[338579793,1726745449120,-816.04,0.00016712,2]
[338579794,1726745449129,-754.27,0.00016712,2]
[338579795,1726745449139,-1738.75,0.00016712,2]
[338579796,1726745449155,-500.0,0.00016712,2]
[338579797,1726745449165,-500.0,0.00016712,2]
[338579798,1726745449174,-500.0,0.00016712,2]
[338579799,1726745449184,-886.05,0.00016712,2]
[338579800,1726745449194,-547.84,0.00016712,2]
[338579801,1726745449203,-500.0,0.00016712,2]
[338579802,1726745449212,-1949.76,0.00016712,2]
[338579803,1726745449221,-718.87,0.00016712,2]
[338579804,1726745449231,-1352.21,0.00016712,2]
[338579805,1726745449239,-151.0,0.00016712,2]
[338579806,1726745449249,-500.0,0.00016712,2]
[338579807,1726745449258,-1872.82532,0.00016712,2]
[338579808,1726745449267,-1121.5,0.00016712,2]
[338579809,1726745449276,-500.0,0.00016712,2]
[338579810,1726745449286,-1872.82532,0.00016712,2]
[338579811,1726745449297,-793.84,0.00016712,2]
[338579812,1726745449306,-268.550748,0.00016712,2]
[338579813,1726745449316,-500.0,0.00016712,2]
[338579814,1726745449325,-268.550748,0.00016712,2]
[338579815,1726745449335,-500.0,0.00016712,2]